[Event "*** SCC Grand Prix: Titled Tuesday Blitz"]
[Site "Chess.com"]
[Date "2020.06.09"]
[Round "2"]
[White "MisiekZielony"]
[Black "djano"]
[Result "0-1"]
[WhiteElo "2112"]
[BlackElo "2413"]
[TimeControl "180+1"]
[EndTime "9:17:23 PDT"]
[Termination "djano won on time"]

1. c4 {[%clk 0:03:00.9]} 1... g6 {[%clk 0:02:59.9]} 2. Nc3 {[%clk 0:03:00.7]}
2... Bg7 {[%clk 0:03:00.5]} 3. g3 {[%clk 0:03:01]} 3... Nf6 {[%clk 0:02:59.7]}
4. Bg2 {[%clk 0:03:01.1]} 4... O-O {[%clk 0:02:59.8]} 5. e4 {[%clk 0:03:01.3]}
5... d6 {[%clk 0:02:59.2]} 6. Nge2 {[%clk 0:03:01.9]} 6... c5 {[%clk 0:02:56.7]}
7. O-O {[%clk 0:03:02.2]} 7... Nc6 {[%clk 0:02:57.3]} 8. d3 {[%clk 0:03:02.5]}
8... Nd4 {[%clk 0:02:53.8]} 9. Nxd4 {[%clk 0:02:58.6]} 9... cxd4 {[%clk
0:02:53.5]} 10. Ne2 {[%clk 0:02:58.8]} 10... e5 {[%clk 0:02:53.3]} 11. h3 {[%clk
0:02:52.4]} 11... Nd7 {[%clk 0:02:51.5]} 12. f4 {[%clk 0:02:50.6]} 12... f5
{[%clk 0:02:51.6]} 13. Rb1 {[%clk 0:02:06.4]} 13... Kh8 {[%clk 0:02:51]} 14. b4
{[%clk 0:02:05.4]} 14... a5 {[%clk 0:02:49.7]} 15. a3 {[%clk 0:02:04.7]} 15...
axb4 {[%clk 0:02:49.9]} 16. axb4 {[%clk 0:02:04.7]} 16... fxe4 {[%clk
0:02:48.2]} 17. Bxe4 {[%clk 0:02:03.1]} 17... Nf6 {[%clk 0:02:48.5]} 18. Bg2
{[%clk 0:02:02.9]} 18... Qe7 {[%clk 0:02:43.6]} 19. Bd2 {[%clk 0:01:03.2]} 19...
e4 {[%clk 0:02:30.7]} 20. Nxd4 {[%clk 0:00:59.5]} 20... Nh5 {[%clk 0:02:31]} 21.
Nb3 {[%clk 0:00:42.5]} 21... exd3 {[%clk 0:02:26.5]} 22. Kh2 {[%clk 0:00:39.9]}
22... Ra2 {[%clk 0:02:15.8]} 23. Re1 {[%clk 0:00:35.7]} 23... Qc7 {[%clk
0:02:07.7]} 24. Rc1 {[%clk 0:00:32.5]} 24... Bd7 {[%clk 0:02:04.5]} 25. Bc3
{[%clk 0:00:32.1]} 25... Bc6 {[%clk 0:01:51.6]} 26. Nd2 {[%clk 0:00:22.9]} 26...
Rfa8 {[%clk 0:01:33.7]} 27. Re3 {[%clk 0:00:21.3]} 27... Qb6 {[%clk 0:01:17.6]}
28. Bxg7+ {[%clk 0:00:16.7]} 28... Nxg7 {[%clk 0:01:16.7]} 29. Qe1 {[%clk
0:00:11.1]} 29... Nf5 {[%clk 0:01:14.2]} 30. Re8+ {[%clk 0:00:09.5]} 30... Rxe8
{[%clk 0:01:13.3]} 0-1

[Event "*** SCC Grand Prix: Titled Tuesday Blitz"]
[Site "Chess.com"]
[Date "2020.06.09"]
[Round "2"]
[White "Jbd735"]
[Black "allvim"]
[Result "1-0"]
[WhiteElo "2442"]
[BlackElo "2212"]
[TimeControl "180+1"]
[EndTime "9:17:24 PDT"]
[Termination "Jbd735 won by resignation"]

1. e4 {[%clk 0:03:00.9]} 1... c5 {[%clk 0:02:51.6]} 2. Nf3 {[%clk 0:03:00.4]}
2... d6 {[%clk 0:02:48.9]} 3. d4 {[%clk 0:03:00.5]} 3... cxd4 {[%clk 0:02:49.1]}
4. Nxd4 {[%clk 0:03:01.4]} 4... Nf6 {[%clk 0:02:49.4]} 5. Nc3 {[%clk 0:03:01.9]}
5... a6 {[%clk 0:02:44.7]} 6. Bg5 {[%clk 0:03:01.5]} 6... e6 {[%clk 0:02:43.9]}
7. f4 {[%clk 0:03:01.3]} 7... Be7 {[%clk 0:02:41.9]} 8. Qe2 {[%clk 0:02:59.8]}
8... Qc7 {[%clk 0:02:40.8]} 9. O-O-O {[%clk 0:02:55.8]} 9... Nc6 {[%clk
0:02:40.6]} 10. Nxc6 {[%clk 0:02:54.9]} 10... Qxc6 {[%clk 0:02:37.7]} 11. e5
{[%clk 0:02:54.4]} 11... dxe5 {[%clk 0:02:31.8]} 12. fxe5 {[%clk 0:02:52.6]}
12... Nd5 {[%clk 0:02:32.3]} 13. Bxe7 {[%clk 0:02:48.7]} 13... Nxe7 {[%clk
0:02:33.2]} 14. Qh5 {[%clk 0:02:10.2]} 14... b5 {[%clk 0:02:14.4]} 15. Bd3
{[%clk 0:02:04.7]} 15... Bb7 {[%clk 0:02:04.8]} 16. Be4 {[%clk 0:02:03.2]} 16...
Qc7 {[%clk 0:02:01.5]} 17. Rhf1 {[%clk 0:01:50.3]} 17... g6 {[%clk 0:00:55.8]}
18. Qf3 {[%clk 0:01:37.9]} 18... O-O {[%clk 0:00:54.9]} 19. Bxb7 {[%clk
0:01:35.7]} 19... Rab8 {[%clk 0:00:51.3]} 20. Be4 {[%clk 0:01:33.7]} 20... Qxe5
{[%clk 0:00:50.7]} 21. Rfe1 {[%clk 0:01:26]} 21... Qc7 {[%clk 0:00:43.8]} 22. h4
{[%clk 0:01:23.5]} 22... b4 {[%clk 0:00:43.9]} 23. Ne2 {[%clk 0:01:20.4]} 23...
Rfc8 {[%clk 0:00:40.8]} 24. Kb1 {[%clk 0:01:14.3]} 24... a5 {[%clk 0:00:38.4]}
25. h5 {[%clk 0:01:14.1]} 25... a4 {[%clk 0:00:38.4]} 26. Qf6 {[%clk 0:01:03.8]}
26... gxh5 {[%clk 0:00:12.2]} 27. Rh1 {[%clk 0:00:54.4]} 27... b3 {[%clk
0:00:07.8]} 28. Bxh7+ {[%clk 0:00:49.2]} 28... Kf8 {[%clk 0:00:04.5]} 1-0

[Event "*** SCC Grand Prix: Titled Tuesday Blitz"]
[Site "Chess.com"]
[Date "2020.06.09"]
[Round "2"]
[White "Gordima"]
[Black "ShahMatKanal"]
[Result "1-0"]
[WhiteElo "2725"]
[BlackElo "2477"]
[TimeControl "180+1"]
[EndTime "9:17:27 PDT"]
[Termination "Gordima won by resignation"]

1. d4 {[%clk 0:03:00.9]} 1... d5 {[%clk 0:02:56.9]} 2. c4 {[%clk 0:03:00.5]}
2... e6 {[%clk 0:02:57.1]} 3. Nc3 {[%clk 0:03:00.2]} 3... Nf6 {[%clk 0:02:56.7]}
4. cxd5 {[%clk 0:03:00.1]} 4... exd5 {[%clk 0:02:56.5]} 5. Bg5 {[%clk
0:03:00.6]} 5... c6 {[%clk 0:02:55.8]} 6. e3 {[%clk 0:03:00.4]} 6... Be7 {[%clk
0:02:42.3]} 7. Bd3 {[%clk 0:02:59.4]} 7... O-O {[%clk 0:02:41.8]} 8. Qc2 {[%clk
0:02:57.6]} 8... Nbd7 {[%clk 0:02:33.1]} 9. Nf3 {[%clk 0:02:57.2]} 9... h6
{[%clk 0:02:18.2]} 10. Bh4 {[%clk 0:02:54.7]} 10... Nh5 {[%clk 0:02:10.7]} 11.
Bxe7 {[%clk 0:02:52]} 11... Qxe7 {[%clk 0:02:10.2]} 12. g4 {[%clk 0:02:50]}
12... Nhf6 {[%clk 0:02:07]} 13. g5 {[%clk 0:02:49.6]} 13... hxg5 {[%clk
0:02:03.6]} 14. Nxg5 {[%clk 0:02:50.5]} 14... Nh5 {[%clk 0:01:42.5]} 15. Rg1
{[%clk 0:02:44.4]} 15... Ndf6 {[%clk 0:01:34.2]} 16. Be2 {[%clk 0:02:30]} 16...
g6 {[%clk 0:01:29.2]} 17. Bd3 {[%clk 0:02:25.2]} 17... Nf4 {[%clk 0:01:22.7]}
18. O-O-O {[%clk 0:02:19.9]} 18... Nxd3+ {[%clk 0:01:22.3]} 19. Qxd3 {[%clk
0:02:20.8]} 19... Bf5 {[%clk 0:01:16]} 20. Qe2 {[%clk 0:02:15]} 20... Kg7 {[%clk
0:01:11.3]} 21. Qf3 {[%clk 0:02:03.5]} 21... Rh8 {[%clk 0:01:06.2]} 22. Rg2
{[%clk 0:01:53.9]} 22... Ne4 {[%clk 0:00:47.4]} 23. Rdg1 {[%clk 0:01:50.8]}
23... Nxg5 {[%clk 0:00:42.5]} 24. Rxg5 {[%clk 0:01:50]} 24... Be4 {[%clk
0:00:41.8]} 25. Qg3 {[%clk 0:01:38.1]} 25... Rh6 {[%clk 0:00:34.8]} 26. f3
{[%clk 0:01:35.4]} 26... Bd3 {[%clk 0:00:32.6]} 27. Kd2 {[%clk 0:01:35.1]} 27...
Re8 {[%clk 0:00:20.6]} 28. Re5 {[%clk 0:01:24.5]} 28... Qd7 {[%clk 0:00:06.6]}
29. Rxe8 {[%clk 0:01:23.3]} 29... Qxe8 {[%clk 0:00:06.4]} 30. Kxd3 {[%clk
0:01:23.4]} 30... Rh5 {[%clk 0:00:05.3]} 31. Qf4 {[%clk 0:01:06.8]} 31... c5
{[%clk 0:00:05.2]} 32. dxc5 {[%clk 0:01:04.7]} 32... b6 {[%clk 0:00:05]} 33.
Qd4+ {[%clk 0:01:02.4]} 33... Kg8 {[%clk 0:00:04.6]} 34. Nxd5 {[%clk 0:01:01.7]}
34... Rxh2 {[%clk 0:00:04.1]} 35. Nf6+ {[%clk 0:01:01.2]} 1-0

[Event "*** SCC Grand Prix: Titled Tuesday Blitz"]
[Site "Chess.com"]
[Date "2020.06.09"]
[Round "2"]
[White "Unknown_IM"]
[Black "publicaccountcze"]
[Result "1-0"]
[WhiteElo "2465"]
[BlackElo "2259"]
[TimeControl "180+1"]
[EndTime "9:17:27 PDT"]
[Termination "Unknown_IM won by checkmate"]

1. e4 {[%clk 0:03:00.9]} 1... e6 {[%clk 0:02:59.3]} 2. d4 {[%clk 0:02:59.7]}
2... d5 {[%clk 0:02:59.3]} 3. e5 {[%clk 0:03:00.1]} 3... c5 {[%clk 0:02:59.1]}
4. c3 {[%clk 0:03:00]} 4... Nc6 {[%clk 0:02:59.4]} 5. Nf3 {[%clk 0:03:00.1]}
5... Qb6 {[%clk 0:02:59.2]} 6. a3 {[%clk 0:03:00.1]} 6... Nh6 {[%clk 0:02:57.7]}
7. b4 {[%clk 0:02:58.8]} 7... cxd4 {[%clk 0:02:57.7]} 8. Bxh6 {[%clk 0:02:58.6]}
8... gxh6 {[%clk 0:02:55.9]} 9. cxd4 {[%clk 0:02:59.5]} 9... Bg7 {[%clk
0:02:55.6]} 10. Nc3 {[%clk 0:02:56.6]} 10... O-O {[%clk 0:02:46.5]} 11. Na4
{[%clk 0:02:55.3]} 11... Qd8 {[%clk 0:02:35.5]} 12. Bd3 {[%clk 0:02:53.3]} 12...
f6 {[%clk 0:02:24.5]} 13. exf6 {[%clk 0:02:52.4]} 13... Qxf6 {[%clk 0:02:20.3]}
14. O-O {[%clk 0:02:38.5]} 14... e5 {[%clk 0:01:59.6]} 15. dxe5 {[%clk
0:02:35.7]} 15... Nxe5 {[%clk 0:01:59.4]} 16. Nxe5 {[%clk 0:02:36.6]} 16... Qxe5
{[%clk 0:01:59.3]} 17. Rc1 {[%clk 0:02:36]} 17... Bf5 {[%clk 0:01:49.6]} 18.
Bxf5 {[%clk 0:02:34]} 18... Qxf5 {[%clk 0:01:43.2]} 19. Qb3 {[%clk 0:02:26.6]}
19... Rad8 {[%clk 0:01:11.2]} 20. Rcd1 {[%clk 0:02:21.9]} 20... Kh8 {[%clk
0:01:07.3]} 21. Rd3 {[%clk 0:01:51.9]} 21... Qg5 {[%clk 0:00:50.6]} 22. Rg3
{[%clk 0:01:45]} 22... Qh5 {[%clk 0:00:48.1]} 23. Nc5 {[%clk 0:01:44.4]} 23...
Rde8 {[%clk 0:00:25.2]} 24. Rd3 {[%clk 0:01:17]} 24... Be5 {[%clk 0:00:18.5]}
25. h3 {[%clk 0:01:11.3]} 25... Qe2 {[%clk 0:00:17.7]} 26. Qxd5 {[%clk
0:00:47.1]} 26... Bh2+ {[%clk 0:00:16.1]} 27. Kxh2 {[%clk 0:00:45.1]} 27... Qxf1
{[%clk 0:00:16.1]} 28. Qd4+ {[%clk 0:00:45.2]} 28... Kg8 {[%clk 0:00:15.3]} 29.
Rg3+ {[%clk 0:00:45.4]} 29... Kf7 {[%clk 0:00:13.2]} 30. Rg7# {[%clk 0:00:45.8]}
1-0

[Event "*** SCC Grand Prix: Titled Tuesday Blitz"]
[Site "Chess.com"]
[Date "2020.06.09"]
[Round "2"]
[White "MathiasWomacka"]
[Black "harkerchess"]
[Result "1-0"]
[WhiteElo "2401"]
[BlackElo "2013"]
[TimeControl "180+1"]
[EndTime "9:17:27 PDT"]
[Termination "MathiasWomacka won by resignation"]

1. e4 {[%clk 0:02:58.1]} 1... e5 {[%clk 0:02:59.7]} 2. Nf3 {[%clk 0:02:57.5]}
2... Nc6 {[%clk 0:02:59.9]} 3. Bb5 {[%clk 0:02:57]} 3... a6 {[%clk 0:02:59.6]}
4. Bxc6 {[%clk 0:02:57.2]} 4... dxc6 {[%clk 0:03:00.5]} 5. O-O {[%clk
0:02:57.5]} 5... f6 {[%clk 0:03:00.4]} 6. d4 {[%clk 0:02:57.3]} 6... exd4 {[%clk
0:03:01.3]} 7. Nxd4 {[%clk 0:02:57.9]} 7... c5 {[%clk 0:03:01.2]} 8. Ne2 {[%clk
0:02:57.4]} 8... Qxd1 {[%clk 0:03:02.1]} 9. Rxd1 {[%clk 0:02:58.2]} 9... Bd7
{[%clk 0:03:02]} 10. Nbc3 {[%clk 0:02:58.3]} 10... O-O-O {[%clk 0:03:00.8]} 11.
Be3 {[%clk 0:02:58]} 11... Bd6 {[%clk 0:02:59.6]} 12. Bf4 {[%clk 0:02:57.4]}
12... Bc6 {[%clk 0:02:49.5]} 13. Rd2 {[%clk 0:02:52.7]} 13... Ne7 {[%clk
0:02:49]} 14. Rad1 {[%clk 0:02:50.6]} 14... Bxf4 {[%clk 0:02:47.8]} 15. Nxf4
{[%clk 0:02:50.6]} 15... Bd7 {[%clk 0:02:40.6]} 16. f3 {[%clk 0:02:45.7]} 16...
Nc6 {[%clk 0:02:39.1]} 17. Nh5 {[%clk 0:02:43.7]} 17... Rhg8 {[%clk 0:02:35.5]}
18. Nd5 {[%clk 0:02:31]} 18... Be6 {[%clk 0:02:29.9]} 19. Kf2 {[%clk 0:02:22.7]}
19... b6 {[%clk 0:02:23.2]} 20. a3 {[%clk 0:02:16.8]} 20... Bxd5 {[%clk
0:02:21.9]} 21. Rxd5 {[%clk 0:02:16.2]} 21... Nd4 {[%clk 0:02:21]} 22. Rxd8+
{[%clk 0:02:13.4]} 22... Rxd8 {[%clk 0:02:20.6]} 23. Nxg7 {[%clk 0:01:46.3]}
23... Nxc2 {[%clk 0:02:20.2]} 24. Rxd8+ {[%clk 0:01:45.8]} 24... Kxd8 {[%clk
0:02:21.1]} 25. Ne6+ {[%clk 0:01:45.4]} 25... Kd7 {[%clk 0:02:18.7]} 26. Nf8+
{[%clk 0:01:44.2]} 26... Ke7 {[%clk 0:02:18.1]} 27. Nxh7 {[%clk 0:01:43.8]}
27... Kf7 {[%clk 0:02:18.2]} 28. e5 {[%clk 0:01:39.9]} 28... fxe5 {[%clk
0:02:18.1]} 29. g4 {[%clk 0:01:33.9]} 29... Nd4 {[%clk 0:02:14.6]} 30. Ng5+
{[%clk 0:01:27.9]} 30... Kg6 {[%clk 0:02:12.5]} 31. h4 {[%clk 0:01:27.8]} 31...
Nb5 {[%clk 0:02:01.2]} 32. Ke3 {[%clk 0:01:16.5]} 32... Nd6 {[%clk 0:01:59.2]}
33. Ne4 {[%clk 0:01:16.2]} 33... Nc4+ {[%clk 0:01:58.9]} 34. Ke2 {[%clk
0:01:12.2]} 34... Nxb2 {[%clk 0:01:57.7]} 35. h5+ {[%clk 0:01:12.5]} 35... Kh6
{[%clk 0:01:56.9]} 36. Nf6 {[%clk 0:01:07.8]} 36... Nc4 {[%clk 0:01:53.7]} 37.
Nd5 {[%clk 0:01:05.8]} 37... c6 {[%clk 0:01:51.7]} 38. Ne7 {[%clk 0:01:05.3]}
38... Nxa3 {[%clk 0:01:50.6]} 39. Nxc6 {[%clk 0:01:04.7]} 39... Nc4 {[%clk
0:01:49.7]} 40. Kd3 {[%clk 0:01:04]} 40... Nb2+ {[%clk 0:01:46.3]} 41. Kc3
{[%clk 0:01:02.1]} 41... Nd1+ {[%clk 0:01:44.6]} 42. Kd2 {[%clk 0:01:01.7]}
42... Nb2 {[%clk 0:01:43.9]} 43. Nxe5 {[%clk 0:01:01.7]} 43... b5 {[%clk
0:01:42.6]} 44. f4 {[%clk 0:00:57.3]} 44... Na4 {[%clk 0:01:40.8]} 45. Nf7+
{[%clk 0:00:48.6]} 45... Kg7 {[%clk 0:01:40]} 46. Nd6 {[%clk 0:00:49.5]} 46...
Nb6 {[%clk 0:01:39]} 47. g5 {[%clk 0:00:47.7]} 47... Nd5 {[%clk 0:01:38.4]} 48.
f5 {[%clk 0:00:46.7]} 48... Nf4 {[%clk 0:01:31.1]} 49. h6+ {[%clk 0:00:43.9]}
49... Kh7 {[%clk 0:01:30]} 50. Nf7 {[%clk 0:00:39.1]} 50... a5 {[%clk 0:01:24]}
51. Ke3 {[%clk 0:00:38.1]} 51... Nd5+ {[%clk 0:01:22.5]} 52. Ke4 {[%clk
0:00:38.1]} 52... Nc3+ {[%clk 0:01:22.6]} 53. Kd3 {[%clk 0:00:37.6]} 53... Nd5
{[%clk 0:01:21.2]} 54. g6+ {[%clk 0:00:37.9]} 54... Kg8 {[%clk 0:01:19.8]} 55.
h7+ {[%clk 0:00:38.3]} 1-0

[Event "*** SCC Grand Prix: Titled Tuesday Blitz"]
[Site "Chess.com"]
[Date "2020.06.09"]
[Round "2"]
[White "SoltaniciR"]
[Black "GOGIEFF"]
[Result "0-1"]
[WhiteElo "2496"]
[BlackElo "2897"]
[TimeControl "180+1"]
[EndTime "9:17:30 PDT"]
[Termination "GOGIEFF won on time"]

1. e4 {[%clk 0:03:00.9]} 1... c5 {[%clk 0:02:57.9]} 2. Nf3 {[%clk 0:03:00.2]}
2... Nc6 {[%clk 0:02:57.1]} 3. d4 {[%clk 0:02:58.8]} 3... cxd4 {[%clk
0:02:56.6]} 4. Nxd4 {[%clk 0:02:59.7]} 4... Qb6 {[%clk 0:02:56.3]} 5. Nb3 {[%clk
0:02:58.8]} 5... Nf6 {[%clk 0:02:55.1]} 6. Nc3 {[%clk 0:02:58.5]} 6... e6 {[%clk
0:02:54.4]} 7. Qe2 {[%clk 0:02:58.4]} 7... Qc7 {[%clk 0:02:50.9]} 8. g4 {[%clk
0:02:56.8]} 8... Bb4 {[%clk 0:02:49.6]} 9. Bd2 {[%clk 0:02:54.9]} 9... Bxc3
{[%clk 0:02:48.4]} 10. Bxc3 {[%clk 0:02:54.9]} 10... Qf4 {[%clk 0:02:48.9]} 11.
f3 {[%clk 0:02:44.6]} 11... O-O {[%clk 0:02:42.6]} 12. Bd2 {[%clk 0:02:41.2]}
12... Qc7 {[%clk 0:02:40]} 13. g5 {[%clk 0:02:39.1]} 13... Nh5 {[%clk
0:02:38.5]} 14. O-O-O {[%clk 0:02:38.9]} 14... d5 {[%clk 0:02:36.6]} 15. Kb1
{[%clk 0:02:25.1]} 15... a5 {[%clk 0:02:21]} 16. a3 {[%clk 0:01:39.2]} 16... a4
{[%clk 0:02:13]} 17. Nc1 {[%clk 0:01:39.1]} 17... Nd4 {[%clk 0:01:57.6]} 18. Qd3
{[%clk 0:01:38.4]} 18... e5 {[%clk 0:01:57.1]} 19. c3 {[%clk 0:01:04.1]} 19...
dxe4 {[%clk 0:01:49]} 20. fxe4 {[%clk 0:01:02.9]} 20... Ne6 {[%clk 0:01:47.5]}
21. Qc4 {[%clk 0:00:56.7]} 21... Nc5 {[%clk 0:01:40]} 22. Nd3 {[%clk 0:00:48.9]}
22... b6 {[%clk 0:01:37.6]} 23. Nxc5 {[%clk 0:00:48]} 23... bxc5 {[%clk
0:01:37]} 24. Be3 {[%clk 0:00:47.6]} 24... Ra5 {[%clk 0:01:22.5]} 25. Rd5 {[%clk
0:00:25.7]} 25... Be6 {[%clk 0:01:20.8]} 26. Be2 {[%clk 0:00:11.8]} 26... Nf4
{[%clk 0:01:14.1]} 27. Rhd1 {[%clk 0:00:07.4]} 27... Bxd5 {[%clk 0:01:11.5]} 28.
exd5 {[%clk 0:00:06.9]} 28... Nxe2 {[%clk 0:01:10.9]} 29. Qxe2 {[%clk
0:00:06.9]} 29... Qd6 {[%clk 0:01:11.6]} 30. c4 {[%clk 0:00:05.5]} 30... Rb8
{[%clk 0:01:09]} 31. Ka2 {[%clk 0:00:03.3]} 31... Ra7 {[%clk 0:01:08.8]} 32. Bd2
{[%clk 0:00:02.6]} 32... Re7 {[%clk 0:01:00.8]} 33. Bc3 {[%clk 0:00:02.8]} 33...
e4 {[%clk 0:01:01.1]} 0-1

[Event "*** SCC Grand Prix: Titled Tuesday Blitz"]
[Site "Chess.com"]
[Date "2020.06.09"]
[Round "2"]
[White "gmmoranda"]
[Black "Belka1989"]
[Result "1-0"]
[WhiteElo "2719"]
[BlackElo "2452"]
[TimeControl "180+1"]
[EndTime "9:17:31 PDT"]
[Termination "gmmoranda won by resignation"]

1. d4 {[%clk 0:03:00.9]} 1... Nf6 {[%clk 0:02:59.4]} 2. c4 {[%clk 0:03:01.1]}
2... e5 {[%clk 0:02:59.8]} 3. dxe5 {[%clk 0:03:00.9]} 3... Ng4 {[%clk
0:03:00.5]} 4. Bf4 {[%clk 0:03:01]} 4... Bb4+ {[%clk 0:03:00.6]} 5. Nd2 {[%clk
0:03:01.2]} 5... Nc6 {[%clk 0:03:01.1]} 6. Nf3 {[%clk 0:03:01.7]} 6... Qe7
{[%clk 0:03:01.4]} 7. e3 {[%clk 0:03:02.2]} 7... Ngxe5 {[%clk 0:03:01.6]} 8.
Nxe5 {[%clk 0:03:03.1]} 8... Nxe5 {[%clk 0:03:02.5]} 9. Be2 {[%clk 0:03:03.5]}
9... d6 {[%clk 0:03:02.7]} 10. O-O {[%clk 0:03:03.4]} 10... Bd7 {[%clk
0:03:03.3]} 11. a3 {[%clk 0:03:01]} 11... Bxd2 {[%clk 0:03:02.8]} 12. Qxd2
{[%clk 0:03:01.8]} 12... b6 {[%clk 0:02:50.5]} 13. b4 {[%clk 0:02:59.5]} 13...
Bc6 {[%clk 0:02:51]} 14. c5 {[%clk 0:02:54.9]} 14... dxc5 {[%clk 0:02:19.8]} 15.
bxc5 {[%clk 0:02:55.8]} 15... O-O {[%clk 0:02:13.6]} 16. cxb6 {[%clk 0:02:52.2]}
16... cxb6 {[%clk 0:02:14.5]} 17. Qb4 {[%clk 0:02:34]} 17... Qe6 {[%clk
0:02:02.2]} 18. Rac1 {[%clk 0:02:30.3]} 18... Rac8 {[%clk 0:02:02.1]} 19. Bg3
{[%clk 0:02:17.3]} 19... Rfd8 {[%clk 0:01:52.4]} 20. Ba6 {[%clk 0:02:13.8]}
20... Nd3 {[%clk 0:01:45.4]} 21. Bxc8 {[%clk 0:01:54.3]} 21... Rxc8 {[%clk
0:01:34.9]} 22. Rxc6 {[%clk 0:01:43.9]} 22... Qxc6 {[%clk 0:01:21.3]} 23. Qg4
{[%clk 0:01:39.3]} 23... Nc5 {[%clk 0:01:19.7]} 24. Rd1 {[%clk 0:01:34.9]} 24...
Re8 {[%clk 0:01:13.1]} 25. h3 {[%clk 0:01:31.7]} 25... h6 {[%clk 0:01:12.5]} 26.
Rd6 {[%clk 0:01:29.4]} 26... Qe4 {[%clk 0:01:09.9]} 27. Qd1 {[%clk 0:01:29.5]}
27... Qc4 {[%clk 0:00:55.9]} 28. Rd4 {[%clk 0:01:25.4]} 28... Qb3 {[%clk
0:00:54.6]} 29. Qxb3 {[%clk 0:01:23]} 29... Nxb3 {[%clk 0:00:55.5]} 30. Rd7
{[%clk 0:01:23.4]} 30... Ra8 {[%clk 0:00:54.2]} 31. Bd6 {[%clk 0:01:20.1]} 31...
Na5 {[%clk 0:00:50.6]} 32. Rc7 {[%clk 0:01:17]} 32... a6 {[%clk 0:00:32.1]} 33.
Bb4 {[%clk 0:01:16.2]} 33... Nb3 {[%clk 0:00:26.9]} 34. f3 {[%clk 0:01:08.7]}
34... a5 {[%clk 0:00:27]} 35. Bc3 {[%clk 0:01:08.6]} 35... Rb8 {[%clk
0:00:21.5]} 36. e4 {[%clk 0:01:07.4]} 36... a4 {[%clk 0:00:20.6]} 37. e5 {[%clk
0:01:06.6]} 37... b5 {[%clk 0:00:20.8]} 38. e6 {[%clk 0:01:06.9]} 38... fxe6
{[%clk 0:00:12]} 39. Rxg7+ {[%clk 0:01:06.8]} 39... Kf8 {[%clk 0:00:12.6]} 40.
Rh7 {[%clk 0:01:07.5]} 40... Rc8 {[%clk 0:00:11.7]} 41. Rh8+ {[%clk 0:01:07.7]}
1-0

[Event "*** SCC Grand Prix: Titled Tuesday Blitz"]
[Site "Chess.com"]
[Date "2020.06.09"]
[Round "2"]
[White "CrazyMartian"]
[Black "crywolf1986"]
[Result "1-0"]
[WhiteElo "2292"]
[BlackElo "2457"]
[TimeControl "180+1"]
[EndTime "9:17:32 PDT"]
[Termination "CrazyMartian won by resignation"]

1. d4 {[%clk 0:02:48]} 1... d5 {[%clk 0:02:58.8]} 2. Bf4 {[%clk 0:02:47.2]} 2...
e6 {[%clk 0:02:58.5]} 3. e3 {[%clk 0:02:47.3]} 3... Bd6 {[%clk 0:02:58.6]} 4.
Bg3 {[%clk 0:02:47.7]} 4... f5 {[%clk 0:02:57.7]} 5. c4 {[%clk 0:02:44]} 5... c6
{[%clk 0:02:55.8]} 6. Bxd6 {[%clk 0:02:42.8]} 6... Qxd6 {[%clk 0:02:54.9]} 7.
Nc3 {[%clk 0:02:43.4]} 7... Nf6 {[%clk 0:02:54.2]} 8. Nf3 {[%clk 0:02:42.5]}
8... Nbd7 {[%clk 0:02:53.7]} 9. g3 {[%clk 0:02:41.3]} 9... O-O {[%clk
0:02:52.9]} 10. Rc1 {[%clk 0:02:25.4]} 10... Kh8 {[%clk 0:02:51.8]} 11. b3
{[%clk 0:02:20.7]} 11... Ne4 {[%clk 0:02:47.5]} 12. Bg2 {[%clk 0:02:17]} 12...
Qb4 {[%clk 0:02:43.7]} 13. Qd3 {[%clk 0:02:11.2]} 13... b6 {[%clk 0:02:40.3]}
14. O-O {[%clk 0:02:05.3]} 14... Ba6 {[%clk 0:02:39.2]} 15. Ne2 {[%clk
0:02:04.9]} 15... Rac8 {[%clk 0:02:36.1]} 16. Nf4 {[%clk 0:01:52.9]} 16... Qe7
{[%clk 0:02:33.9]} 17. Rfd1 {[%clk 0:01:40.7]} 17... g5 {[%clk 0:02:28.4]} 18.
Ne2 {[%clk 0:01:37.9]} 18... g4 {[%clk 0:02:26.5]} 19. Ne5 {[%clk 0:01:35]}
19... Nxe5 {[%clk 0:02:25.3]} 20. dxe5 {[%clk 0:01:35.9]} 20... Rfd8 {[%clk
0:02:24.5]} 21. Qc2 {[%clk 0:01:28.3]} 21... Ng5 {[%clk 0:02:17.3]} 22. Nf4
{[%clk 0:01:19.9]} 22... Nf3+ {[%clk 0:02:01.9]} 23. Bxf3 {[%clk 0:01:13.1]}
23... gxf3 {[%clk 0:02:02.8]} 24. Rd2 {[%clk 0:00:46.6]} 24... dxc4 {[%clk
0:02:01.9]} 25. Rcd1 {[%clk 0:00:40.5]} 25... Rxd2 {[%clk 0:01:48]} 26. Qxd2
{[%clk 0:00:35.4]} 26... cxb3 {[%clk 0:01:43.8]} 27. axb3 {[%clk 0:00:35.6]}
27... c5 {[%clk 0:01:39.5]} 28. Qa2 {[%clk 0:00:24.1]} 28... Rd8 {[%clk
0:01:30.4]} 29. Rxd8+ {[%clk 0:00:19.7]} 29... Qxd8 {[%clk 0:01:31.3]} 30. Qxa6
{[%clk 0:00:20.2]} 30... Qd1+ {[%clk 0:01:29.7]} 31. Qf1 {[%clk 0:00:20.7]}
31... Qxb3 {[%clk 0:01:30.3]} 32. h4 {[%clk 0:00:20]} 32... c4 {[%clk
0:01:22.7]} 33. Qa1 {[%clk 0:00:18.2]} 33... a5 {[%clk 0:01:19.9]} 34. Qd4
{[%clk 0:00:17.8]} 34... c3 {[%clk 0:01:16]} 35. Qd8+ {[%clk 0:00:17.7]} 35...
Kg7 {[%clk 0:01:15.4]} 36. Qf6+ {[%clk 0:00:18.3]} 36... Kg8 {[%clk 0:01:12.2]}
37. Nxe6 {[%clk 0:00:18]} 37... Qd1+ {[%clk 0:01:10.5]} 38. Kh2 {[%clk
0:00:17.3]} 1-0